[Event "XXXI Torre Memorial 2019"]
[Site "Merida"]
[Date "2019.12.16"]
[Round "5.17"]
[White "Morales Romero, Pedro"]
[Black "Leon Valdes, Jony Wilson"]
[Result "1/2-1/2"]
[ECO "C01"]
[WhiteElo "2328"]
[BlackElo "2398"]
[Annotator "NA"]
[PlyCount "50"]
[EventDate "2019.12.13"]
[EventType "swiss"]
[EventCountry "MEX"]
[SourceTitle "playchess.com"]
[Source "ChessBase"]
[SourceQuality "1"]
[TimeControl "5400+30"]

1. e4 {[%emt 0:01:28]} e6 {[%emt 0:00:00]} 2. d4 {[%emt 0:00:08]} d5 {[%emt 0:00:00]} 3. exd5 {[%emt 0:00:10]} exd5 {[%emt 0:00:00]} 4. Bd3 {[%emt 0:00:06]} Bd6 {[%emt 0:00:00]} 5. Ne2 {[%emt 0:00:07]} Ne7 {[%emt 0:00:00]} 6. Bf4 {[%emt 0:00:10]} O-O {[%emt 0:00:00]} 7. O-O {[%emt 0:00:09]} Nbc6 {[%emt 0:00:00]} 8. c3 {[%emt 0:00:11]} Bf5 {[%emt 0:00:02]} 9. Bxf5 {[%emt 0:00:11]} Nxf5 {[%emt 0:00:06]} 10. Bxd6 {[%emt 0:00:18]} Qxd6 {[%emt 0:00:08]} 11. Nd2 {[%emt 0:00:09]} Rae8 {[%emt 0:00:05]} 12. Ng3 {[%emt 0:00:11]} Nxg3 {[%emt 0:00:08]} 13. hxg3 {[%emt 0:00:07]} Re7 {[%emt 0:00:05]} 14. Nf3 {[%emt 0:00:09]} Rfe8 {[%emt 0:00:07]} 15. Re1 {[%emt 0:00:08]} h6 {[%emt 0:00:08]} 16. Qd2 {[%emt 0:00:09]} Rxe1+ {[%emt 0:00:06]} 17. Rxe1 {[%emt 0:00:04]} Rxe1+ {[%emt 0:00:04]} 18. Qxe1 {[%emt 0:00:06]} Qe7 {[%emt 0:00:04]} 19. Qxe7 {[%emt 0:00:06]} Nxe7 {[%emt 0:00:04]} 20. Kf1 {[%emt 0:00:07]} Kf8 {[%emt 0:00:05]} 21. Ke2 {[%emt 0:00:09]} f6 {[%emt 0:00:04]} 22. Kd3 {[%emt 0:00:06]} Nc8 {[%emt 0:00:05]} 23. b3 {[%emt 0:00:09]} Ke7 {[%emt 0:00:05]} 24. Nd2 {[%emt 0:00:05]} Nd6 {[%emt 0:00:04]} 25. f3 {[%emt 0:00:07]} c6 {[%emt 0:00:04]} 1/2-1/2

[Event "XXXI Torre Memorial 2019"]
[Site "Merida"]
[Date "2019.12.16"]
[Round "5.18"]
[White "Figueredo Losada, Leonel"]
[Black "Noboa Silva, Kevin"]
[Result "0-1"]
[ECO "E49"]
[WhiteElo "2381"]
[BlackElo "2306"]
[Annotator "NA"]
[PlyCount "50"]
[EventDate "2019.12.13"]
[EventType "swiss"]
[EventCountry "MEX"]
[SourceTitle "playchess.com"]
[Source "ChessBase"]
[SourceQuality "1"]
[TimeControl "5400+30"]

1. d4 {[%emt 0:00:00]} e6 {[%emt 0:03:16]} 2. c4 {[%emt 0:00:18]} Nf6 {[%emt 0:00:28]} 3. Nc3 {[%emt 0:00:06]} Bb4 {[%emt 0:00:08]} 4. e3 {[%emt 0:00:06]} O-O {[%emt 0:01:37]} 5. Bd3 {[%emt 0:00:07]} d5 {[%emt 0:03:06]} 6. a3 {[%emt 0:00:38]} Bxc3+ {[%emt 0:00:17]} 7. bxc3 {[%emt 0:00:04]} dxc4 {[%emt 0:01:00]} 8. Bxc4 {[%emt 0:00:05]} c5 {[%emt 0:00:05]} 9. Ne2 {[%emt 0:11:39]} Qc7 {[%emt 0:00:37]} 10. Ba2 {[%emt 0:03:19]} b6 {[%emt 0:01:19]} 11. O-O {[%emt 0:00:33]} Ba6 {[%emt 0:01:20]} 12. f3 {[%emt 0:02:49]} Nc6 {[%emt 0:00:41]} 13. Rf2 {[%emt 0:02:33]} Rfd8 {[%emt 0:02:49]} 14. Qa4 {[%emt 0:01:04]} Qc8 {[%emt 0:11:52]} 15. Bb2 {[%emt 0:11:05]} e5 {[%emt 0:04:50]} 16. Rc1 {[%emt 0:02:43]} Bd3 {[%emt 0:08:39]} 17. dxc5 {[%emt 0:18:39]} b5 {[%emt 0:05:19]} 18. Qh4 {[%emt 0:01:07]} Ne7 {[%emt 0:00:17]} 19. Re1 {[%emt 0:16:48]} Nf5 {[%emt 0:04:41]} 20. Qh3 {[%emt 0:01:10]} Qxc5 {[%emt 0:00:53]} 21. f4 {[%emt 0:15:26]} Nxe3 {[%emt 0:05:32]} 22. fxe5 {[%emt 0:02:53]} Bxe2 {[%emt 0:15:47]} 23. exf6 {[%emt 0:00:05]} Ng4 {[%emt 0:00:15]} 24. Qg3 {[%emt 0:03:49]} Rd2 {[%emt 0:04:09]} 25. Bc1 Rd4 0-1

[Event "XXXI Torre Memorial 2019"]
[Site "Merida"]
[Date "2019.12.17"]
[Round "7.1"]
[White "Santiago, Yago De Moura"]
[Black "Cordova, Emilio"]
[Result "1/2-1/2"]
[ECO "E12"]
[WhiteElo "2479"]
[BlackElo "2585"]
[Annotator "ChessBase"]
[PlyCount "50"]
[EventDate "2019.12.13"]
[EventType "swiss"]
[EventCountry "MEX"]
[SourceTitle "playchess.com"]
[Source "ChessBase"]
[SourceQuality "1"]
[TimeControl "5400+30"]

1. d4 Nf6 2. c4 e6 3. Nf3 b6 4. a3 Ba6 5. Qc2 Bb7 6. Nc3 c5 7. dxc5 Bxc5 8. Bf4 O-O 9. Rd1 a5 {[%emt 0:31:05]} 10. e3 {[%emt 0:23:36]} Na6 {[%emt 0:00:24]} 11. Bd3 {[%emt 0:07:12]} Be7 {[%emt 0:10:49]} 12. Ng5 {[%emt 0:04:56]} h6 {[%emt 0:06:24]} 13. Nh7 {[%emt 0:15:35]} Nxh7 {[%emt 0:00:33]} 14. Bxh7+ {[%emt 0:00:07]} Kh8 {[%emt 0:00:02]} 15. Be4 {[%emt 0:00:41]} Qc8 {[%emt 0:00:27]} 16. Bxb7 {[%emt 0:02:55]} Qxb7 {[%emt 0:00:04]} 17. Qe4 {[%emt 0:00:10]} Qc6 {[%emt 0:01:01]} 18. O-O {[%emt 0:00:55]} Nc5 {[%emt 0:01:02]} 19. Qxc6 {[%emt 0:00:21]} dxc6 {[%emt 0:00:04]} 20. Bd6 {[%emt 0:01:52]} Bxd6 {[%emt 0:01:17]} 21. Rxd6 {[%emt 0:00:08]} Rfc8 {[%emt 0:00:09]} 22. Rfd1 {[%emt 0:00:20]} a4 {[%emt 0:00:15]} 23. Kf1 {[%emt 0:00:14]} Kg8 {[%emt 0:00:07]} 24. Ke2 {[%emt 0:00:15]} Kf8 {[%emt 0:00:09]} 25. h3 {[%emt 0:00:10]} Rab8 {[%emt 0:00:09]} 1/2-1/2

[Event "XXXI Torre Memorial 2019"]
[Site "Merida"]
[Date "2019.12.17"]
[Round "7.2"]
[White "Albornoz Cabrera, Carlos Daniel"]
[Black "Miranda Mesa, Elier"]
[Result "1/2-1/2"]
[ECO "B12"]
[WhiteElo "2555"]
[BlackElo "2477"]
[Annotator "ChessBase"]
[PlyCount "51"]
[EventDate "2019.12.13"]
[EventType "swiss"]
[EventCountry "MEX"]
[SourceTitle "playchess.com"]
[Source "ChessBase"]
[SourceQuality "1"]
[TimeControl "5400+30"]

1. e4 c6 2. d4 d5 3. e5 Bf5 4. Nf3 e6 5. Be2 Ne7 6. O-O Ng6 7. c3 f6 8. Bd3 Bxd3 9. Qxd3 f5 {[%emt 0:48:01]} 10. Ng5 {[%emt 0:10:07]} Qd7 {[%emt 0:00:30]} 11. Qg3 {[%emt 0:04:31]} Ne7 {[%emt 0:04:01]} 12. h4 {[%emt 0:01:28]} Na6 {[%emt 0:01:01]} 13. b3 {[%emt 0:03:47]} h6 {[%emt 0:02:03]} 14. Nh3 {[%emt 0:00:27]} Rg8 {[%emt 0:01:14]} 15. Nd2 {[%emt 0:04:57]} O-O-O {[%emt 0:04:01]} 16. Nf3 {[%emt 0:06:14]} Kb8 {[%emt 0:00:57]} 17. Nf4 g6 {[%emt 0:00:42]} 18. Nd3 {[%emt 0:10:57]} Nc8 {[%emt 0:02:02]} 19. a4 Nc7 {[%emt 0:01:12]} 20. Nh2 {[%emt 0:07:46]} Na6 {[%emt 0:07:44]} 21. Be3 {[%emt 0:02:35]} Qe8 {[%emt 0:02:36]} 22. f4 {[%emt 0:02:09]} Nb6 {[%emt 0:00:47]} 23. Nf3 {[%emt 0:01:03]} Rc8 24. Qf2 {[%emt 0:00:59]} Be7 {[%emt 0:01:14]} 25. Rfc1 {[%emt 0:03:46]} Nd7 26. c4 1/2-1/2

[Event "XXXI Torre Memorial 2019"]
[Site "Merida"]
[Date "2019.12.17"]
[Round "7.4"]
[White "Gonzalez Zamora, Juan Carlos"]
[Black "Ibarra Chami, Luis Fernando"]
[Result "1/2-1/2"]
[ECO "A06"]
[WhiteElo "2535"]
[BlackElo "2423"]
[Annotator "ChessBase"]
[PlyCount "120"]
[EventDate "2019.12.13"]
[EventType "swiss"]
[EventCountry "MEX"]
[SourceTitle "playchess.com"]
[Source "ChessBase"]
[SourceQuality "1"]
[TimeControl "5400+30"]

1. Nf3 d5 2. g3 Nf6 3. Bg2 e6 4. O-O b5 5. a4 b4 6. d4 Be7 7. c4 bxc3 8. Nxc3 O-O 9. Ne5 c6 10. a5 Nfd7 11. Nd3 Na6 {[%emt 0:33:36]} 12. e4 {[%emt 0:17:39]} Nc7 {[%emt 0:22:26]} 13. Qc2 {[%emt 0:05:42]} Ba6 {[%emt 0:00:47]} 14. Rd1 {[%emt 0:00:06]} Rb8 {[%emt 0:04:48]} 15. Bf4 {[%emt 0:00:46]} Bc4 {[%emt 0:03:08]} 16. Nc1 {[%emt 0:02:18]} Bg5 {[%emt 0:01:49]} 17. Bxg5 {[%emt 0:07:07]} Qxg5 {[%emt 0:00:07]} 18. b3 {[%emt 0:00:05]} Ba6 {[%emt 0:00:56]} 19. Na4 {[%emt 0:00:52]} Bb5 {[%emt 0:01:27]} 20. Nc3 {[%emt 0:06:01]} Rfc8 {[%emt 0:02:49]} 21. N1a2 {[%emt 0:01:31]} Qe7 {[%emt 0:00:36]} 22. Rdc1 {[%emt 0:00:28]} Ba6 {[%emt 0:01:38]} 23. Na4 {[%emt 0:06:02]} Nb5 {[%emt 0:00:18]} 24. Qd2 {[%emt 0:00:56]} Nd6 {[%emt 0:01:33]} 25. exd5 {[%emt 0:06:03]} cxd5 {[%emt 0:00:05]} 26. Nc5 {[%emt 0:00:31]} Bb5 {[%emt 0:00:48]} 27. b4 {[%emt 0:05:56]} Bc4 {[%emt 0:00:59]} 28. Nc3 {[%emt 0:01:05]} Nf5 {[%emt 0:01:24]} 29. Rab1 {[%emt 0:02:02]} Nd6 {[%emt 0:02:09]} 30. Re1 {[%emt 0:00:37]} Qd8 {[%emt 0:00:49]} 31. Bh3 {[%emt 0:05:25]} Nf8 {[%emt 0:00:05]} 32. Bg2 {[%emt 0:02:01]} Ng6 {[%emt 0:00:25]} 33. Nd1 {[%emt 0:04:00]} Ne7 {[%emt 0:00:36]} 34. Ne3 {[%emt 0:00:22]} Nc6 {[%emt 0:02:21]} 35. h4 {[%emt 0:03:41]} Rb5 {[%emt 0:02:07]} 36. Rec1 {[%emt 0:05:37]} Rbb8 {[%emt 0:06:09]} 37. Kh2 {[%emt 0:03:05]} Bb5 {[%emt 0:00:36]} 38. Rd1 {[%emt 0:02:35]} Nc4 {[%emt 0:00:34]} 39. Qc3 {[%emt 0:01:53]} Nxe3 {[%emt 0:00:47]} 40. fxe3 {[%emt 0:00:43]} Ne7 {[%emt 0:00:08]} 41. Qd2 {[%emt 0:00:23]} Nf5 {[%emt 0:00:34]} 42. e4 {[%emt 0:02:08]} dxe4 {[%emt 0:00:10]} 43. Bxe4 {[%emt 0:00:09]} Qf6 {[%emt 0:01:41]} 44. Qf4 {[%emt 0:02:44]} Nh6 {[%emt 0:03:27]} 45. Qxf6 {[%emt 0:02:06]} Ng4+ {[%emt 0:00:05]} 46. Kg1 {[%emt 0:00:20]} Nxf6 {[%emt 0:00:06]} 47. Bf3 {[%emt 0:00:04]} Rd8 {[%emt 0:00:11]} 48. Kf2 {[%emt 0:00:27]} Nd5 {[%emt 0:00:26]} 49. Bxd5 {[%emt 0:05:05]} Rxd5 {[%emt 0:00:33]} 50. Ne4 {[%emt 0:00:40]} Ba4 {[%emt 0:00:33]} 51. Rd2 {[%emt 0:01:51]} Rxa5 {[%emt 0:07:13]} 52. Ra2 {[%emt 0:01:22]} Rf5+ {[%emt 0:00:06]} 53. Ke3 {[%emt 0:00:05]} Bc6 {[%emt 0:00:28]} 54. Rxa7 {[%emt 0:00:05]} h6 {[%emt 0:03:33]} 55. Rc7 {[%emt 0:00:12]} Rb6 {[%emt 0:01:34]} 56. g4 {[%emt 0:00:50]} Bxe4 {[%emt 0:00:04]} 57. Kxe4 {[%emt 0:00:10]} Rfb5 {[%emt 0:00:03]} 58. Rf1 {[%emt 0:00:59]} f6 {[%emt 0:01:12]} 59. Ra1 {[%emt 0:01:00]} Rxb4 {[%emt 0:00:39]} 60. Raa7 {[%emt 0:00:17]} Rd6 {[%emt 0:00:10]} 1/2-1/2

[Event "XXXI Torre Memorial 2019"]
[Site "Merida"]
[Date "2019.12.17"]
[Round "7.5"]
[White "Fernandez De La Vara, Arnaldo"]
[Black "Macieja, Bartlomiej"]
[Result "1/2-1/2"]
[ECO "A35"]
[WhiteElo "2463"]
[BlackElo "2513"]
[Annotator "ChessBase"]
[PlyCount "124"]
[EventDate "2019.12.13"]
[EventType "swiss"]
[EventCountry "MEX"]
[SourceTitle "playchess.com"]
[Source "ChessBase"]
[SourceQuality "1"]
[TimeControl "5400+30"]

1. c4 c5 2. Nf3 Nf6 3. Nc3 Nc6 4. e3 e6 5. d4 d5 6. cxd5 exd5 7. Bb5 cxd4 8. Nxd4 Bd7 9. Nf3 a6 {[%emt 0:38:12]} 10. Bxc6 {[%emt 0:07:49]} bxc6 {[%emt 0:00:05]} 11. O-O {[%emt 0:00:19]} Be7 {[%emt 0:00:03]} 12. b3 {[%emt 0:01:28]} O-O {[%emt 0:00:06]} 13. Bb2 {[%emt 0:00:17]} Bg4 {[%emt 0:07:53]} 14. h3 {[%emt 0:01:08]} Bh5 {[%emt 0:00:01]} 15. Ne2 {[%emt 0:01:31]} Bxf3 {[%emt 0:01:42]} 16. gxf3 {[%emt 0:00:19]} Qd7 {[%emt 0:04:14]} 17. Kh2 {[%emt 0:01:38]} c5 {[%emt 0:01:32]} 18. Rg1 {[%emt 0:04:36]} a5 {[%emt 0:05:48]} 19. Qd3 {[%emt 0:04:56]} Rfd8 {[%emt 0:06:55]} 20. Rg2 {[%emt 0:15:17]} d4 {[%emt 0:07:20]} 21. exd4 {[%emt 0:04:40]} cxd4 {[%emt 0:00:04]} 22. f4 {[%emt 0:06:26]} Nh5 {[%emt 0:12:20]} 23. Qf3 {[%emt 0:03:08]} Qd5 {[%emt 0:07:17]} 24. Qg4 {[%emt 0:03:05]} Bf6 {[%emt 0:00:05]} 25. Rd1 {[%emt 0:01:21]} g6 {[%emt 0:01:26]} 26. Bxd4 {[%emt 0:03:08]} Ng7 {[%emt 0:06:41]} 27. Nc3 {[%emt 0:04:06]} Qc6 {[%emt 0:00:01]} 28. Bxf6 {[%emt 0:00:10]} Rxd1 {[%emt 0:00:46]} 29. Qxd1 {[%emt 0:06:12]} Qxf6 {[%emt 0:00:02]} 30. Nd5 {[%emt 0:00:58]} Qd6 {[%emt 0:01:54]} 31. Qd4 {[%emt 0:00:13]} Rd8 {[%emt 0:00:30]} 32. Nf6+ {[%emt 0:00:14]} Kh8 {[%emt 0:00:02]} 33. Qxd6 {[%emt 0:00:10]} Rxd6 {[%emt 0:00:03]} 34. Ne4 {[%emt 0:00:42]} Rd5 {[%emt 0:01:22]} 35. f3 {[%emt 0:01:22]} Nh5 {[%emt 0:00:09]} 36. Rd2 {[%emt 0:01:44]} Nxf4 {[%emt 0:00:25]} 37. Rxd5 Nxd5 {[%emt 0:00:01]} 38. Nd6 {[%emt 0:00:41]} Kg7 {[%emt 0:00:23]} 39. a3 {[%emt 0:03:21]} Ne7 {[%emt 0:01:03]} 40. Kg3 {[%emt 0:08:14]} Nc6 {[%emt 0:00:03]} 41. Kf4 {[%emt 0:02:15]} Kf6 {[%emt 0:00:03]} 42. Nb7 {[%emt 0:02:35]} g5+ {[%emt 0:01:53]} 43. Ke4 {[%emt 0:03:00]} Ke6 {[%emt 0:00:02]} 44. Nc5+ {[%emt 0:00:34]} Kd6 {[%emt 0:00:02]} 45. Na6 {[%emt 0:02:46]} Ne7 {[%emt 0:00:53]} 46. b4 {[%emt 0:00:19]} f5+ {[%emt 0:00:03]} 47. Kd4 {[%emt 0:02:04]} axb4 {[%emt 0:01:13]} 48. Nxb4 {[%emt 0:00:05]} h5 {[%emt 0:00:04]} 49. Nd3 {[%emt 0:01:58]} g4 {[%emt 0:01:12]} 50. Ke3 {[%emt 0:02:04]} Ng6 {[%emt 0:00:34]} 51. f4 {[%emt 0:04:04]} gxh3 {[%emt 0:00:07]} 52. Kf2 {[%emt 0:01:12]} Kc6 {[%emt 0:00:53]} 53. Kg3 {[%emt 0:00:34]} Kb5 {[%emt 0:00:04]} 54. Kxh3 {[%emt 0:00:28]} Ka4 {[%emt 0:00:03]} 55. Kg3 {[%emt 0:00:16]} Kxa3 {[%emt 0:00:04]} 56. Ne5 {[%emt 0:00:46]} h4+ {[%emt 0:00:05]} 57. Kh3 {[%emt 0:00:04]} Nxf4+ {[%emt 0:00:03]} 58. Kxh4 {[%emt 0:00:06]} Ne6 {[%emt 0:00:07]} 59. Ng6 {[%emt 0:00:21]} Kb4 {[%emt 0:00:03]} 60. Ne7 {[%emt 0:00:07]} f4 {[%emt 0:00:05]} 61. Nd5+ {[%emt 0:00:03]} Kc4 {[%emt 0:00:02]} 62. Nxf4 {[%emt 0:00:07]} Nxf4 {[%emt 0:00:01]} 1/2-1/2

[Event "XXXI Torre Memorial 2019"]
[Site "Merida"]
[Date "2019.12.17"]
[Round "7.6"]
[White "Diaz Perez, Michel Alejandro"]
[Black "Espinosa Veloz, Ermes"]
[Result "1/2-1/2"]
[ECO "E73"]
[WhiteElo "2455"]
[BlackElo "2489"]
[Annotator "ChessBase"]
[PlyCount "138"]
[EventDate "2019.12.13"]
[EventType "swiss"]
[EventCountry "MEX"]
[SourceTitle "playchess.com"]
[Source "ChessBase"]
[SourceQuality "1"]
[TimeControl "5400+30"]

1. d4 Nf6 2. c4 g6 3. Nc3 Bg7 4. e4 d6 5. Be2 O-O 6. Bg5 h6 7. Be3 e5 8. d5 Na6 9. Qd2 Nc5 10. f3 a5 11. Bd1 {[%emt 0:04:24]} Ne8 {[%emt 0:32:58]} 12. Bc2 {[%emt 0:07:21]} f5 {[%emt 0:00:12]} 13. exf5 {[%emt 0:05:49]} gxf5 {[%emt 0:09:35]} 14. O-O-O {[%emt 0:01:40]} Qh4 {[%emt 0:04:09]} 15. f4 {[%emt 0:03:47]} exf4 {[%emt 0:02:49]} 16. Bd4 {[%emt 0:05:09]} Nf6 {[%emt 0:04:08]} 17. Nge2 {[%emt 0:09:44]} Nfe4 {[%emt 0:05:50]} 18. Nxe4 {[%emt 0:05:00]} Nxe4 {[%emt 0:03:26]} 19. Qxf4 {[%emt 0:15:32]} Qxf4+ {[%emt 0:01:02]} 20. Nxf4 {[%emt 0:00:01]} Bd7 {[%emt 0:00:34]} 21. Bxg7 {[%emt 0:02:03]} Kxg7 {[%emt 0:00:04]} 22. Rde1 {[%emt 0:00:11]} Rae8 {[%emt 0:01:56]} 23. Rhf1 {[%emt 0:00:17]} Nc5 {[%emt 0:09:01]} 24. Nh5+ {[%emt 0:09:10]} Kg6 {[%emt 0:00:27]} 25. Rxe8 {[%emt 0:00:13]} Rxe8 {[%emt 0:00:05]} 26. g4 {[%emt 0:00:39]} Kg5 {[%emt 0:08:23]} 27. Ng7 {[%emt 0:01:19]} Re7 {[%emt 0:01:31]} 28. Nxf5 {[%emt 0:01:17]} Bxf5 {[%emt 0:00:08]} 29. gxf5 {[%emt 0:03:37]} Kf6 {[%emt 0:00:16]} 30. Rf3 {[%emt 0:02:50]} Nd7 {[%emt 0:10:18]} 31. Rh3 {[%emt 0:01:17]} Rh7 {[%emt 0:00:04]} 32. Kd2 {[%emt 0:02:42]} Ne5 {[%emt 0:00:16]} 33. b3 {[%emt 0:00:01]} h5 {[%emt 0:06:09]} 34. Rg3 {[%emt 0:00:29]} h4 {[%emt 0:01:04]} 35. Rg8 {[%emt 0:02:08]} Rg7 {[%emt 0:00:52]} 36. Rxg7 {[%emt 0:00:42]} Kxg7 {[%emt 0:00:01]} 37. Ke3 {[%emt 0:00:13]} Ng4+ 38. Kf4 {[%emt 0:00:06]} Ne5 {[%emt 0:01:43]} 39. a4 {[%emt 0:04:43]} Kf6 {[%emt 0:01:42]} 40. h3 {[%emt 0:00:01]} c6 {[%emt 0:00:45]} 41. Be4 {[%emt 0:03:20]} c5 {[%emt 0:00:27]} 42. Bc2 {[%emt 0:00:01]} Kg7 {[%emt 0:00:31]} 43. Bb1 {[%emt 0:01:11]} Kf6 {[%emt 0:00:30]} 44. Be4 {[%emt 0:00:02]} b6 {[%emt 0:00:32]} 45. Bc2 {[%emt 0:00:08]} Kg7 {[%emt 0:00:27]} 46. Bb1 {[%emt 0:00:02]} Kf7 47. Kg5 {[%emt 0:03:47]} Nd7 {[%emt 0:00:57]} 48. Kxh4 {[%emt 0:00:15]} Nf6 {[%emt 0:00:01]} 49. Kg5 {[%emt 0:00:30]} Kg7 {[%emt 0:00:04]} 50. h4 {[%emt 0:00:29]} Nh7+ {[%emt 0:00:01]} 51. Kf4 {[%emt 0:00:50]} Nf6 {[%emt 0:00:03]} 52. Bd3 {[%emt 0:00:20]} Kh6 {[%emt 0:00:06]} 53. Be2 {[%emt 0:00:07]} Kg7 {[%emt 0:00:06]} 54. Bd1 {[%emt 0:02:33]} Kh6 {[%emt 0:00:02]} 55. Bf3 {[%emt 0:00:06]} Kg7 {[%emt 0:00:07]} 56. Kg5 {[%emt 0:03:09]} Nh7+ {[%emt 0:00:01]} 57. Kg4 {[%emt 0:00:22]} Nf6+ {[%emt 0:00:03]} 58. Kf4 {[%emt 0:00:07]} Kh6 {[%emt 0:00:05]} 59. Be2 {[%emt 0:00:28]} Kg7 {[%emt 0:00:06]} 60. Bd1 {[%emt 0:00:35]} Kh6 {[%emt 0:00:08]} 61. Bf3 {[%emt 0:00:05]} Kg7 {[%emt 0:00:22]} 62. Ke3 {[%emt 0:00:06]} Kh6 {[%emt 0:00:10]} 63. Be2 {[%emt 0:01:58]} Kg7 {[%emt 0:00:06]} 64. Bd1 {[%emt 0:00:09]} Kh6 {[%emt 0:00:07]} 65. Kf4 {[%emt 0:00:04]} Kg7 {[%emt 0:00:10]} 66. h5 {[%emt 0:01:44]} Kh6 {[%emt 0:00:13]} 67. Bf3 {[%emt 0:00:04]} Kg7 {[%emt 0:00:08]} 68. Kg5 {[%emt 0:00:06]} Nh7+ {[%emt 0:00:04]} 69. Kf4 {[%emt 0:00:01]} Nf6 {[%emt 0:00:14]} 1/2-1/2

[Event "XXXI Torre Memorial 2019"]
[Site "Merida"]
[Date "2019.12.17"]
[Round "7.7"]
[White "Kevlishvili, Robby"]
[Black "Drazic, Sinisa"]
[Result "1-0"]
[ECO "B04"]
[WhiteElo "2457"]
[BlackElo "2371"]
[Annotator "ChessBase"]
[PlyCount "31"]
[EventDate "2019.12.13"]
[EventType "swiss"]
[EventCountry "MEX"]
[SourceTitle "playchess.com"]
[Source "ChessBase"]
[SourceQuality "1"]
[TimeControl "5400+30"]

1. e4 Nf6 2. e5 Nd5 3. d4 d6 4. Nf3 Nb6 5. a4 a5 6. exd6 exd6 7. Bd3 Bg4 8. O-O Be7 9. Re1 Nc6 10. c3 Bh5 11. Nbd2 Rg8 12. Ne4 Qd7 13. Ng3 {[%emt 0:18:16]} Bg6 14. Bb5 {[%emt 0:00:30]} Qd8 {[%emt 0:19:41]} 15. d5 {[%emt 0:07:05] Ne5 Nd4+} h6 {[%emt 0:07:10] f4+ Ned7} 16. Bxc6+ {[%emt 0:30:06] Bf6 Bxb7+ Bxd4+ cxd4+ Rb8 Bc6+ Nf6 Qf3+ Qc8 f5+ Bh7 b3+ Qa6 Bd2+ Nc8 Ne4+ Nxe4 Rxe4+ Na7 Rg4+ h5 Rh4+ g6 Bh6+ Nxc6 dxc6 Qb6 fxg6 fxg6 Bf8 Rxf8 Rf4} 1-0

[Event "XXXI Torre Memorial 2019"]
[Site "Merida"]
[Date "2019.12.17"]
[Round "7.8"]
[White "Vera Gonzalez-Quevedo, Reynaldo"]
[Black "Ramirez, Alejandro"]
[Result "1/2-1/2"]
[ECO "A46"]
[WhiteElo "2436"]
[BlackElo "2589"]
[Annotator "ChessBase"]
[PlyCount "107"]
[EventDate "2019.12.13"]
[EventType "swiss"]
[EventCountry "MEX"]
[SourceTitle "playchess.com"]
[Source "ChessBase"]
[SourceQuality "1"]
[TimeControl "5400+30"]

1. d4 Nf6 2. Nf3 c5 3. c3 Qc7 4. e3 g6 5. dxc5 Qxc5 6. b4 Qc7 7. Bb2 Bg7 8. c4 O-O 9. Nbd2 b6 10. Be2 Bb7 11. O-O d6 12. Qb3 Nbd7 13. h3 Rac8 14. Rfc1 Qb8 15. Bc3 {[%emt 0:25:11]} Rc7 {[%emt 0:30:25]} 16. a4 {[%emt 0:09:28]} Rfc8 {[%emt 0:21:39]} 17. a5 {[%emt 0:03:58]} e5 {[%emt 0:09:22]} 18. axb6 {[%emt 0:01:58]} axb6 {[%emt 0:00:08]} 19. Bb2 {[%emt 0:04:35]} Nf8 {[%emt 0:01:05]} 20. Rd1 {[%emt 0:10:46]} Ne6 {[%emt 0:00:26]} 21. Nb1 {[%emt 0:04:06]} Ne4 {[%emt 0:02:07]} 22. Nfd2 {[%emt 0:00:34]} Nf6 {[%emt 0:04:45]} 23. Nc3 {[%emt 0:00:48]} Bc6 {[%emt 0:00:51]} 24. Nd5 {[%emt 0:03:09]} Rb7 {[%emt 0:00:28]} 25. b5 {[%emt 0:20:30]} Bxd5 {[%emt 0:02:05]} 26. cxd5 {[%emt 0:00:10]} Nc5 {[%emt 0:00:03]} 27. Qa2 {[%emt 0:01:23]} e4 {[%emt 0:00:32]} 28. Nc4 {[%emt 0:02:11]} Re7 {[%emt 0:01:49]} 29. Bd4 {[%emt 0:00:57]} Ne8 {[%emt 0:04:52]} 30. Qb2 {[%emt 0:00:08]} f5 {[%emt 0:02:42]} 31. Ra3 {[%emt 0:05:00]} Rec7 {[%emt 0:06:04]} 32. Bxg7 {[%emt 0:01:02]} Rxg7 {[%emt 0:00:23]} 33. Rda1 {[%emt 0:00:26]} Rb7 {[%emt 0:02:05]} 34. Qd4 {[%emt 0:02:29]} Qc7 {[%emt 0:01:04]} 35. g3 {[%emt 0:03:09]} Nd7 {[%emt 0:01:35]} 36. Ra8 {[%emt 0:01:00]} Rxa8 {[%emt 0:01:43]} 37. Rxa8 {[%emt 0:00:03]} Rb8 {[%emt 0:00:06]} 38. Qa1 {[%emt 0:01:47]} Rxa8 {[%emt 0:00:48]} 39. Qxa8 {[%emt 0:00:03]} Kf7 {[%emt 0:00:03]} 40. Qc6 {[%emt 0:01:44]} Ke7 {[%emt 0:00:31]} 41. g4 {[%emt 0:00:08]} Qb8 {[%emt 0:08:21]} 42. Kg2 {[%emt 0:00:57]} Nef6 {[%emt 0:01:25]} 43. Kg3 {[%emt 0:00:08]} Ne8 {[%emt 0:00:38]} 44. g5 {[%emt 0:01:36]} Qa7 {[%emt 0:01:51]} 45. h4 {[%emt 0:00:52]} Qa1 {[%emt 0:00:50]} 46. Kg2 {[%emt 0:00:13]} Qe1 {[%emt 0:00:12]} 47. Bf1 {[%emt 0:01:57]} Qd1 {[%emt 0:00:04]} 48. Nxb6 {[%emt 0:00:37]} Qg4+ {[%emt 0:00:31]} 49. Kh1 {[%emt 0:00:27]} Qxh4+ {[%emt 0:01:14]} 50. Kg1 {[%emt 0:00:01]} Qg4+ {[%emt 0:01:13]} 51. Bg2 {[%emt 0:00:17]} Qd1+ {[%emt 0:00:38]} 52. Bf1 {[%emt 0:00:03]} Qg4+ {[%emt 0:00:21]} 53. Bg2 {[%emt 0:00:19]} Qd1+ {[%emt 0:00:21]} 54. Bf1 {[%emt 0:00:02]} 1/2-1/2

[Event "XXXI Torre Memorial 2019"]
[Site "Merida"]
[Date "2019.12.17"]
[Round "7.10"]
[White "Ordaz Valdes, Lisandra Teresa"]
[Black "Rodriguez Vila, Andres"]
[Result "0-1"]
[ECO "E32"]
[WhiteElo "2376"]
[BlackElo "2463"]
[Annotator "ChessBase"]
[PlyCount "22"]
[EventDate "2019.12.13"]
[EventType "swiss"]
[EventCountry "MEX"]
[SourceTitle "playchess.com"]
[Source "ChessBase"]
[SourceQuality "1"]
[TimeControl "5400+30"]

1. d4 e6 2. c4 Nf6 3. Nc3 Bb4 4. Qc2 O-O 5. Nf3 d6 6. Bd2 c5 7. dxc5 dxc5 8. Rd1 Nc6 9. a3 Bxc3 10. Bxc3 Qe7 11. Ne5 Nxe5 0-1

[Event "XXXI Torre Memorial 2019"]
[Site "Merida"]
[Date "2019.12.17"]
[Round "7.16"]
[White "Berdayes Ason, Dylan Isidro"]
[Black "Diaz Rosas, Julio Cesar"]
[Result "1-0"]
[ECO "B90"]
[WhiteElo "2448"]
[BlackElo "2365"]
[Annotator "NA"]
[PlyCount "63"]
[EventDate "2019.12.13"]
[EventType "swiss"]
[EventCountry "MEX"]
[SourceTitle "playchess.com"]
[Source "ChessBase"]
[SourceQuality "1"]
[TimeControl "5400+30"]

1. e4 c5 2. Nf3 d6 3. d4 cxd4 4. Nxd4 Nf6 5. Nc3 a6 6. Be3 e5 7. Nb3 Be7 8. f3 Be6 9. Qd2 O-O 10. O-O-O a5 11. a4 Na6 12. g4 Nb4 13. Kb1 Rc8 14. g5 Nh5 15. Rg1 d5 16. exd5 {[%emt 0:06:09]} Bf5 {[%emt 0:33:36]} 17. Na1 {[%emt 0:00:29]} Nf4 {[%emt 0:09:46]} 18. Bxf4 {[%emt 0:36:32]} exf4 {[%emt 0:01:14]} 19. Qxf4 {[%emt 0:02:02]} Qb6 {[%emt 0:00:24]} 20. Bb5 {[%emt 0:01:31]} Qg6 {[%emt 0:03:29]} 21. Ne4 {[%emt 0:05:22]} Rfd8 {[%emt 0:00:33]} 22. c4 {[%emt 0:01:15]} Bd6 {[%emt 0:00:50]} 23. Qh4 {[%emt 0:00:16]} Be5 {[%emt 0:07:24]} 24. Nb3 {[%emt 0:03:55]} Qb6 {[%emt 0:00:42]} 25. Rge1 {[%emt 0:00:45]} Rxd5 {[%emt 0:13:56]} 26. Rxd5 {[%emt 0:04:54]} Nxd5 {[%emt 0:00:05]} 27. cxd5 {[%emt 0:00:58]} Qd6 {[%emt 0:00:32]} 28. Rd1 {[%emt 0:07:24]} Qb4 {[%emt 0:03:59]} 29. Rd3 {[%emt 0:00:02]} Rc3 {[%emt 0:01:20]} 30. Rxc3 {[%emt 0:03:42]} Bxc3 {[%emt 0:00:02]} 31. Qf4 {[%emt 0:02:00]} g6 {[%emt 0:01:55]} 32. Ka2 1-0